fUSD/lending_fUSD_20250113
["ID","MTS","AMOUNT","RATE_DAILY","PERIOD"]
[348704636,1736731832733,-214.93604862,9.988e-05,2]
[348704637,1736731832742,-40275.02568896,9.988e-05,2]
[348704638,1736731832753,-53673.44516548,9.988e-05,2]
[348704639,1736731832776,-580.87891067,9.988e-05,2]
[348704659,1736731838290,-17183.95792744,9.988e-05,2]
[348704660,1736731838302,-811.351313,9.988e-05,2]
[348704661,1736731838313,-4827.74473643,9.988e-05,2]
[348704662,1736731838325,-584.97850091,9.988e-05,2]
[348704663,1736731838336,-9763.4,9.988e-05,2]
[348704664,1736731838351,-500.0,9.988e-05,2]
[348704665,1736731838427,-1072.35,9.988e-05,2]
[348704666,1736731838439,-39224.88111482,9.988e-05,2]
[348704667,1736731838448,-214.93604862,9.992e-05,2]
[348704668,1736731838457,-4958.98,9.998e-05,2]
[348704669,1736731838466,-253.291,9.998e-05,2]
[348704670,1736731838475,-1118.87,9.998e-05,2]
[348704671,1736731838485,-500.0,9.998e-05,2]
[348704672,1736731838494,-500.0,9.998e-05,2]
[348704673,1736731838503,-1000.0,9.998e-05,2]
[348704674,1736731838512,-500.0,9.998e-05,2]
[348704675,1736731838522,-155.94419477,9.998e-05,2]
[348704676,1736731838531,-594.98,9.998e-05,2]
[348704677,1736731838540,-500.0,9.998e-05,2]
[348704678,1736731838549,-626.27,9.998e-05,2]
[348704679,1736731838558,-909.32,9.998e-05,2]
[348704681,1736731838567,-500.0,9.998e-05,2]
[348704682,1736731838577,-500.0,9.998e-05,2]
[348704684,1736731838586,-500.0,9.998e-05,2]
[348704685,1736731838598,-735.75,9.998e-05,2]
[348704686,1736731838609,-500.0,9.998e-05,2]
[348704687,1736731838619,-519.21487018,9.998e-05,2]
[348704688,1736731838629,-509.3797786,9.998e-05,2]
[348704689,1736731838638,-214.93604862,9.998e-05,2]
[348704690,1736731838648,-275.44967595,9.999e-05,2]
[348704691,1736731838657,-502.99186117,9.999e-05,2]
[348704692,1736731838667,-500.80463259,9.999e-05,2]
[348704693,1736731838676,-500.96804778,9.999e-05,2]
[348704694,1736731838687,-503.13166563,9.999e-05,2]
[348704695,1736731838696,-501.99067918,9.999e-05,2]
[348704696,1736731838705,-500.69368204,9.999e-05,2]
[348704697,1736731838714,-502.85718823,9.999e-05,2]
[348704698,1736731838723,-501.66983493,9.999e-05,2]
[348704699,1736731838732,-501.1098614,9.999e-05,2]
[348704700,1736731838742,-397.99543455,9.999e-05,2]
[348704701,1736731838751,-500.0,9.999e-05,2]
[348704702,1736731838760,-501.97774188,9.999e-05,2]
[348704703,1736731838770,-503.37953518,9.999e-05,2]
[348704704,1736731838779,-502.2692072,9.999e-05,2]
[348704705,1736731838789,-502.4382404,9.999e-05,2]
[348704706,1736731838799,-500.0,9.999e-05,2]
[348704707,1736731838808,-500.0,9.999e-05,2]
[348704708,1736731838818,-500.0,9.999e-05,2]
[348704709,1736731838827,-500.0,9.999e-05,2]
[348704710,1736731838837,-377.74946825,9.999e-05,2]
[348704711,1736731838848,-633.46,9.999e-05,2]
[348704712,1736731838857,-500.0,9.999e-05,2]
[348704713,1736731838866,-500.0,9.999e-05,2]
[348704714,1736731838875,-463.23873128,9.999e-05,2]
[348704715,1736731838884,-500.0,9.999e-05,2]
[348704716,1736731838893,-500.0,9.999e-05,2]
[348704717,1736731838903,-500.0,9.999e-05,2]
[348704718,1736731838912,-500.0,9.999e-05,2]
[348704719,1736731838921,-500.0,9.999e-05,2]
[348704720,1736731838930,-602.16,9.999e-05,2]
[348704721,1736731838939,-500.0,9.999e-05,2]
[348704722,1736731838948,-500.0,9.999e-05,2]
[348704723,1736731838958,-1372.35,9.999e-05,2]
[348704724,1736731838967,-192.87772921,9.999e-05,2]
[348704725,1736731838976,-500.0,9.999e-05,2]
[348704726,1736731838985,-500.0,9.999e-05,2]
[348704727,1736731838994,-426.951978,9.999e-05,2]
[348704728,1736731839004,-500.0,9.999e-05,2]
[348704729,1736731839013,-1453.36,9.999e-05,2]
[348704730,1736731839022,-379.794504,9.999e-05,2]
[348704731,1736731839031,-500.0,9.999e-05,2]
[348704732,1736731839041,-500.0,9.999e-05,2]
[348704733,1736731839050,-500.0,9.999e-05,2]
[348704734,1736731839059,-500.0,9.999e-05,2]
[348704735,1736731839068,-500.0,9.999e-05,2]
[348704736,1736731839077,-500.0,9.999e-05,2]
[348704737,1736731839086,-500.0,9.999e-05,2]
[348704738,1736731839098,-500.0,9.999e-05,2]
[348704739,1736731839108,-500.0,9.999e-05,2]
[348704740,1736731839117,-500.0,9.999e-05,2]
[348704741,1736731839126,-500.0,9.999e-05,2]
[348704742,1736731839135,-500.0,9.999e-05,2]
[348704743,1736731839144,-184.94010367,9.999e-05,2]
[348704744,1736731839153,-500.0,9.999e-05,2]
[348704745,1736731839162,-500.0,9.999e-05,2]
[348704746,1736731839171,-504.51748111,9.999e-05,2]
[348704747,1736731839181,-593.11,9.999e-05,2]
[348704748,1736731839190,-227.71608528,9.999e-05,2]
[348704749,1736731839200,-500.0,9.999e-05,2]
[348704750,1736731839209,-733.6,9.999e-05,2]
[348704751,1736731839219,-500.0,9.999e-05,2]
[348704752,1736731839228,-500.0,9.999e-05,2]
[348704753,1736731839237,-502.36546025,9.999e-05,2]
[348704754,1736731839247,-500.0,9.999e-05,2]
[348704755,1736731839256,-500.0,9.999e-05,2]
[348704756,1736731839265,-500.0,9.999e-05,2]
[348704757,1736731839275,-500.0,9.999e-05,2]
[348704758,1736731839284,-500.0,9.999e-05,2]
[348704759,1736731839294,-500.0,9.999e-05,2]
[348704760,1736731839303,-500.0,9.999e-05,2]
[348704761,1736731839312,-940.3,9.999e-05,2]
[348704762,1736731839321,-500.0,9.999e-05,2]
[348704763,1736731839331,-500.0,9.999e-05,2]
[348704764,1736731839340,-500.0,9.999e-05,2]
[348704765,1736731839351,-500.0,9.999e-05,2]
[348704766,1736731839361,-1785.49,9.999e-05,2]
[348704767,1736731839370,-648.0,9.999e-05,2]
[348704768,1736731839379,-500.0,9.999e-05,2]
[348704769,1736731839389,-500.0,9.999e-05,2]
[348704770,1736731839398,-500.0,9.999e-05,2]
[348704771,1736731839408,-500.0,9.999e-05,2]
[348704772,1736731839418,-513.81,9.999e-05,2]
[348704773,1736731839428,-500.0,9.999e-05,2]
[348704774,1736731839437,-500.0,9.999e-05,2]
[348704775,1736731839446,-500.0,9.999e-05,2]
[348704776,1736731839456,-500.0,9.999e-05,2]
[348704777,1736731839466,-500.0,9.999e-05,2]
[348704778,1736731839475,-500.0,9.999e-05,2]
[348704779,1736731839486,-500.0,9.999e-05,2]
[348704780,1736731839497,-500.0,9.999e-05,2]
[348704781,1736731839506,-500.0,9.999e-05,2]
[348704782,1736731839516,-553.86,9.999e-05,2]
[348704783,1736731839525,-883.83,9.999e-05,2]
[348704784,1736731839535,-500.0,9.999e-05,2]
[348704785,1736731839545,-438.7,9.999e-05,2]
[348704786,1736731839555,-500.0,9.999e-05,2]
[348704787,1736731839563,-500.0,9.999e-05,2]
[348704788,1736731839573,-500.0,9.999e-05,2]
[348704789,1736731839582,-500.0,9.999e-05,2]
[348704790,1736731839591,-500.0,9.999e-05,2]
[348704791,1736731839603,-500.0,9.999e-05,2]
[348704792,1736731839617,-605.28,9.999e-05,2]
[348704793,1736731839627,-499.68427692,9.999e-05,2]
[348704794,1736731839636,-500.0,9.999e-05,2]
[348704795,1736731839647,-500.0,9.999e-05,2]
[348704796,1736731839656,-343.75,9.999e-05,2]
[348704797,1736731839665,-500.0,9.999e-05,2]
[348704798,1736731839674,-1726.13,9.999e-05,2]
[348704799,1736731839684,-500.0,9.999e-05,2]
[348704800,1736731839694,-500.0,9.999e-05,2]
[348704801,1736731839703,-500.0,9.999e-05,2]
[348704802,1736731839711,-500.0,9.999e-05,2]
[348704803,1736731839720,-317.97043074,9.999e-05,2]
[348704804,1736731839730,-500.0,9.999e-05,2]
[348704805,1736731839739,-164.63,9.999e-05,2]
[348704806,1736731839749,-500.0,9.999e-05,2]
[348704807,1736731839758,-500.0,9.999e-05,2]
[348704808,1736731839768,-750.08,9.999e-05,2]
[348704809,1736731839777,-500.0,9.999e-05,2]
[348704810,1736731839786,-500.0,9.999e-05,2]
[348704811,1736731839795,-500.0,9.999e-05,2]
[348704812,1736731839806,-500.0,9.999e-05,2]
[348704813,1736731839815,-500.0,9.999e-05,2]
[348704814,1736731839824,-258.49012271,9.999e-05,2]
[348704815,1736731839833,-500.0,9.999e-05,2]
[348704816,1736731839842,-502.61929144,9.999e-05,2]
[348704817,1736731839854,-500.0,9.999e-05,2]
[348704818,1736731839863,-500.0,9.999e-05,2]
[348704819,1736731839873,-500.0,9.999e-05,2]
[348704820,1736731839882,-500.37990955,9.999e-05,2]
[348704821,1736731839892,-500.0,9.999e-05,2]
[348704822,1736731839901,-500.0,9.999e-05,2]
[348704823,1736731839910,-500.0,9.999e-05,2]
[348704824,1736731839924,-639.72,9.999e-05,2]
[348704825,1736731839934,-1170.08,9.999e-05,2]
[348704826,1736731839943,-500.0,9.999e-05,2]
[348704827,1736731839954,-500.0,9.999e-05,2]
[348704828,1736731839965,-500.0,9.999e-05,2]
[348704829,1736731839975,-500.0,9.999e-05,2]
[348704830,1736731839985,-205.11098321,9.999e-05,2]
[348704831,1736731839995,-500.0,9.999e-05,2]
[348704833,1736731840004,-501.16003813,9.999e-05,2]
[348704835,1736731840015,-500.0,9.999e-05,2]
[348704836,1736731840026,-522.15,9.999e-05,2]
[348704837,1736731840037,-500.0,9.999e-05,2]
[348704838,1736731840048,-500.0,9.999e-05,2]
[348704839,1736731840058,-637.76,9.999e-05,2]
[348704840,1736731840068,-521.61,9.999e-05,2]
[348704841,1736731840079,-500.0,9.999e-05,2]
[348704842,1736731840089,-500.0,9.999e-05,2]
[348704843,1736731840100,-500.0,9.999e-05,2]
[348704844,1736731840110,-712.35,9.999e-05,2]
[348704845,1736731840119,-500.0,9.999e-05,2]
[348704846,1736731840128,-780.75,9.999e-05,2]
[348704847,1736731840138,-500.0,9.999e-05,2]
[348704848,1736731840147,-500.0,9.999e-05,2]
[348704849,1736731840156,-500.0,9.999e-05,2]
[348704851,1736731840166,-500.0,9.999e-05,2]
[348704853,1736731840175,-500.0,9.999e-05,2]
[348704855,1736731840395,-500.0,9.999e-05,2]
[348704856,1736731840404,-1807.35,9.999e-05,2]
[348704857,1736731840413,-500.0,9.999e-05,2]
[348704858,1736731840422,-520.7,9.999e-05,2]
[348704859,1736731840431,-500.0,9.999e-05,2]
[348704860,1736731840440,-500.0,9.999e-05,2]
[348704861,1736731840449,-3763.15,9.999e-05,2]
[348704862,1736731840458,-673.1,9.999e-05,2]
[348704863,1736731840467,-500.0,9.999e-05,2]
[348704864,1736731840476,-500.0,9.999e-05,2]
[348704865,1736731840485,-2374.93,9.999e-05,2]
[348704866,1736731840494,-500.0,9.999e-05,2]
[348704867,1736731840503,-1146.83,9.999e-05,2]
[348704868,1736731840512,-588.83,9.999e-05,2]
[348704869,1736731840521,-500.0,9.999e-05,2]
[348704870,1736731840530,-500.0,9.999e-05,2]
[348704871,1736731840539,-723.78,9.999e-05,2]
[348704872,1736731840548,-500.0,9.999e-05,2]
[348704873,1736731840557,-500.0,9.999e-05,2]
[348704874,1736731840566,-500.0,9.999e-05,2]
[348704875,1736731840576,-500.0,9.999e-05,2]
[348704876,1736731840585,-500.0,9.999e-05,2]
[348704877,1736731840595,-1683.34,9.999e-05,2]
[348704878,1736731840613,-500.0,9.999e-05,2]
[348704879,1736731840623,-500.0,9.999e-05,2]
[348704880,1736731840632,-500.0,9.999e-05,2]
[348704881,1736731840642,-500.0,9.999e-05,2]
[348704882,1736731840652,-663.14,9.999e-05,2]
[348704883,1736731840662,-500.0,9.999e-05,2]
[348704884,1736731840672,-500.0,9.999e-05,2]
[348704885,1736731840682,-500.0,9.999e-05,2]
[348704886,1736731840693,-500.0,9.999e-05,2]
[348704887,1736731840703,-196.73870059,9.999e-05,2]
[348704888,1736731840713,-1486.87,9.999e-05,2]
[348704889,1736731840722,-505.14,9.999e-05,2]
[348704890,1736731840732,-500.0,9.999e-05,2]
[348704891,1736731840741,-523.21,9.999e-05,2]
[348704892,1736731840751,-500.0,9.999e-05,2]
[348704893,1736731840761,-500.0,9.999e-05,2]
[348704894,1736731840770,-1388.29,9.999e-05,2]
[348704895,1736731840780,-500.0,9.999e-05,2]
[348704896,1736731840790,-1382.55,9.999e-05,2]
[348704897,1736731840799,-500.0,9.999e-05,2]
[348704898,1736731840808,-500.0,9.999e-05,2]
[348704899,1736731840818,-816.07,9.999e-05,2]
[348704900,1736731840827,-1667.51,9.999e-05,2]
[348704901,1736731840837,-500.0,9.999e-05,2]
[348704902,1736731840847,-848.89,9.999e-05,2]
[348704903,1736731840863,-500.0,9.999e-05,2]
[348704904,1736731840873,-500.0,9.999e-05,2]
[348704905,1736731840882,-1118.9,9.999e-05,2]
[348704906,1736731840892,-500.0,9.999e-05,2]
[348704907,1736731840901,-738.53,9.999e-05,2]
[348704908,1736731840911,-1112.74139546,9.999e-05,3]
[348704909,1736731840921,-500.0,9.999e-05,2]
[348704910,1736731840930,-500.0,9.999e-05,2]
[348704911,1736731840939,-500.0,9.999e-05,2]
[348704912,1736731840949,-500.0,9.999e-05,2]
[348704914,1736731840959,-1377.8,9.999e-05,2]
[348704916,1736731840968,-1868.86,9.999e-05,2]
[348704917,1736731840977,-500.0,9.999e-05,2]
[348704918,1736731840987,-500.0,9.999e-05,2]
[348704919,1736731840996,-268.99,9.999e-05,2]
[348704920,1736731841005,-541.89,9.999e-05,2]
[348704921,1736731841015,-614.35,9.999e-05,2]
[348704922,1736731841023,-880.14,9.999e-05,2]
[348704923,1736731841033,-903.25,9.999e-05,2]
[348704924,1736731841042,-500.0,9.999e-05,2]
[348704925,1736731841051,-500.0,9.999e-05,2]
[348704926,1736731841061,-500.0,9.999e-05,2]
[348704927,1736731841070,-587.63,9.999e-05,2]
[348704928,1736731841079,-517.11,9.999e-05,2]
[348704929,1736731841088,-2093.74,9.999e-05,2]
[348704930,1736731841097,-500.0,9.999e-05,2]
[348704931,1736731841110,-500.0,9.999e-05,2]
[348704932,1736731841119,-500.0,9.999e-05,2]
[348704933,1736731841128,-605.51,9.999e-05,2]
[348704934,1736731841137,-973.26,9.999e-05,2]
[348704935,1736731841146,-884.51,9.999e-05,2]
[348704936,1736731841155,-338.99321975,9.999e-05,2]
[348704937,1736731841164,-500.0,9.999e-05,2]
[348704938,1736731841173,-544.05,9.999e-05,2]
[348704939,1736731841182,-500.0,9.999e-05,2]
[348704940,1736731841191,-500.0,9.999e-05,2]
[348704941,1736731841201,-500.0,9.999e-05,2]
[348704942,1736731841210,-500.0,9.999e-05,2]
[348704943,1736731841219,-500.0,9.999e-05,2]
[348704944,1736731841227,-1525.66,9.999e-05,2]
[348704945,1736731841236,-182.7913661,9.999e-05,2]
[348704946,1736731841245,-925.04,9.999e-05,2]
[348704947,1736731841254,-517.02373344,9.999e-05,2]
[348704948,1736731841263,-500.0,9.999e-05,2]
[348704949,1736731841273,-500.0,9.999e-05,2]
[348704950,1736731841281,-500.0,9.999e-05,2]
[348704951,1736731841290,-518.06,9.999e-05,2]
[348704952,1736731841299,-500.0,9.999e-05,2]
[348704953,1736731841308,-924.65,9.999e-05,2]
[348704954,1736731841317,-2169.81,9.999e-05,2]
[348704955,1736731841326,-500.0,9.999e-05,2]
[348704956,1736731841335,-500.0,9.999e-05,2]
[348704957,1736731841343,-1580.6,9.999e-05,2]
[348704958,1736731841355,-1580.6,9.999e-05,2]
[348704959,1736731841364,-500.0,9.999e-05,2]
[348704960,1736731841373,-1580.6,9.999e-05,2]
[348704961,1736731841382,-1580.6,9.999e-05,2]
[348704962,1736731841391,-1580.6,9.999e-05,2]
[348704963,1736731841400,-1580.6,9.999e-05,2]
[348704964,1736731841410,-419.42062442,9.999e-05,2]
[348704965,1736731841419,-1580.6,9.999e-05,2]
[348704966,1736731841428,-1580.6,9.999e-05,2]
[348704967,1736731841437,-500.0,9.999e-05,2]
[348704968,1736731841446,-1580.6,9.999e-05,2]
[348704969,1736731841455,-951.5,9.999e-05,2]
[348704970,1736731841464,-1580.6,9.999e-05,2]
[348704971,1736731841474,-1580.6,9.999e-05,2]
[348704972,1736731841483,-1580.6,9.999e-05,2]
[348704973,1736731841492,-1346969.31028061,0.0001,2]
[348704974,1736731841501,-355623.6082683,0.0001,2]
[348704975,1736731841510,-431.11351908,0.0001,2]
[348704976,1736731841519,-233527.68765641,0.0001,2]
[348704977,1736731841528,-202.73,0.0001,2]
[348704978,1736731841538,-200.0,0.0001,2]
[348704979,1736731841547,-2086.81263279,0.0001,2]
[348704980,1736731841556,-555.5647,0.0001,2]
[348704981,1736731841565,-166.39605659,0.0001,2]
[348704982,1736731841574,-3933454.44261514,0.0001,2]
[348704983,1736731841583,-7015.0882985,0.0001,2]
[348704984,1736731841593,-331.62505289,0.0001,2]
[348704985,1736731841604,-7312.62577763,0.0001,2]
[348704986,1736731841617,-653.73425882,0.0001,2]
[348704987,1736731841626,-11148248.51041621,0.0001,2]
[348704988,1736731841643,-9461.97209555,0.0001,2]
[348704989,1736731841655,-9463.65712155,0.0001,2]
[348704990,1736731841666,-4173.9,0.0001,2]
[348704991,1736731841677,-3233.66408716,0.0001,2]
[348704992,1736731841689,-4754.5,0.0001,2]
[348704993,1736731841824,-1580.6,9.999e-05,2]
[348704994,1736731841833,-3377.97646711,0.0001,2]
[348704995,1736731841946,-683.52260615,0.0001,2]
[348704996,1736731841957,-443.19153326,0.0001,2]
[348704997,1736731841967,-1836.6,0.0001,2]
[348704998,1736731841978,-3002.84950921,0.0001,2]
[348704999,1736731841989,-6524.3484993,0.0001,2]
[348705000,1736731842000,-2647.83,0.0001,2]
[348705001,1736731842012,-598.35049997,0.0001,2]
[348705002,1736731842033,-11401.6306497,0.0001,2]
[348705027,1736731843278,-500.0,9.998e-05,2]
[348705028,1736731843287,-1580.6,9.999e-05,2]
[348705029,1736731843295,-1580.6,9.999e-05,2]
[348705030,1736731843304,-392.54261943,9.999e-05,2]
[348705031,1736731843314,-500.0,9.999e-05,2]
[348705032,1736731843323,-787.18757505,0.0001,2]
[348705033,1736731843422,-1915431.24379392,0.0001,2]
[348705034,1736731843433,-102027.55633108,0.0001,2]
[348705035,1736731843444,-490.44403302,0.0001,2]
[348705036,1736731843564,-4770.522,0.0001,2]
[348705037,1736731843575,-50130.70468253,0.0001,2]
[348705038,1736731843585,-22962.09038652,0.0001,2]
[348705045,1736731846235,-2281.05,9.999e-05,2]
[348705046,1736731846244,-1805.81656933,0.0001,2]
[348705047,1736731846255,-1522.9792,0.0001,2]
[348705048,1736731846266,-47308.2202669,0.0001,2]
[348705049,1736731846367,-1558.10117696,0.0001,2]
[348705056,1736732061313,2126.0,0.00023,120]
[348705057,1736732117121,14510.18298611,0.00023,120]
[348705061,1736732441734,502.74839332,9.998e-05,7]
[348705063,1736732727316,725.87,8.219e-05,2]
[348705070,1736732975407,453.85,0.00023,120]
[348705075,1736733032400,-188.03,8.982e-05,2]
[348705076,1736733032410,-163.16,8.982e-05,2]
[348705077,1736733032419,-250.0,9.025e-05,2]
[348705078,1736733032429,-276.16,9.092e-05,2]
[348705079,1736733032438,-468.07,9.145e-05,2]
[348705080,1736733032447,-250.0,9.263e-05,2]
[348705081,1736733032456,-1000.0,9.306e-05,2]
[348705082,1736733032466,-11.02216162,9.316e-05,2]
[348705083,1736733032477,-238.97783838,9.316e-05,2]
[348705084,1736733032487,-197.52,9.328e-05,2]
[348705085,1736733032496,-982.3,9.364e-05,2]
[348705086,1736733032506,-150.0,9.425e-05,2]
[348705087,1736733032515,-172.38,9.448e-05,2]
[348705088,1736733032525,-157.235,9.5e-05,2]
[348705089,1736733032534,-300.0,9.532e-05,2]
[348705090,1736733032543,-299.99,9.533e-05,2]
[348705091,1736733032552,-1040.53613422,9.533e-05,2]
[348705092,1736733032563,-337.06151267,9.533e-05,2]
[348705093,1736733032575,-4676.37235311,9.533e-05,2]
[348705094,1736733032584,-7365.47,9.533e-05,2]
[348705095,1736733032593,-1000.0,9.888e-05,2]
[348705096,1736733032602,-1951.24443338,9.898e-05,2]
[348705097,1736733032615,-117.40546662,9.898e-05,2]
[348705098,1736733032624,-20955.0345,9.899e-05,2]
[348705099,1736733032633,-3972.21,9.899e-05,2]
[348705100,1736733032643,-202.9,9.899e-05,2]
[348705101,1736733032652,-154.1125,9.9e-05,2]
[348705102,1736733032669,-5000.0,9.9e-05,2]
[348705103,1736733032680,-324.84265656,9.9e-05,2]
[348705104,1736733032690,-500.0,9.973e-05,2]
[348705105,1736733032700,-15979.99487682,9.998e-05,2]
[348705106,1736733032725,-117.2460223,9.998e-05,2]
[348705107,1736733032734,-433.38250506,9.998e-05,2]
[348705108,1736733032814,-66.61749494,9.998e-05,2]
[348705109,1736733032823,-500.0,9.998e-05,2]
[348705110,1736733032833,-500.0,9.998e-05,2]
[348705111,1736733032842,-500.0,9.998e-05,2]
[348705112,1736733032851,-412.84585506,9.998e-05,2]
[348705113,1736733032865,-87.15414494,9.998e-05,2]
[348705114,1736733032874,-500.0,9.998e-05,2]
[348705115,1736733032885,-500.0,9.998e-05,2]
[348705116,1736733032894,-508.31586235,9.998e-05,2]
[348705117,1736733032904,-512.19416757,9.998e-05,2]
[348705118,1736733032913,-509.20805866,9.998e-05,2]
[348705119,1736733032923,-500.0,9.998e-05,2]
[348705120,1736733032932,-511.09485852,9.998e-05,2]
[348705121,1736733032942,-508.64748106,9.998e-05,2]
[348705122,1736733032951,-500.0,9.998e-05,2]
[348705123,1736733032961,-500.0,9.998e-05,2]
[348705124,1736733032971,-516.93932112,9.998e-05,2]
[348705125,1736733032980,-505.90410833,9.998e-05,2]
[348705126,1736733032989,-510.35322522,9.998e-05,2]
[348705127,1736733032999,-511.71505599,9.998e-05,2]
[348705128,1736733033008,-500.0,9.998e-05,2]
[348705129,1736733033018,-508.67035093,9.998e-05,2]
[348705130,1736733033028,-500.0,9.998e-05,2]
[348705131,1736733033038,-500.0,9.998e-05,2]
[348705132,1736733033047,-300.21895642,9.998e-05,2]
[348705133,1736733033057,-500.0,9.998e-05,2]
[348705134,1736733033068,-500.0,9.998e-05,2]
[348705135,1736733033081,-509.37026572,9.998e-05,2]
[348705136,1736733033091,-500.0,9.998e-05,2]
[348705137,1736733033101,-509.56821135,9.998e-05,2]
[348705138,1736733033113,-510.28920911,9.998e-05,2]
[348705139,1736733033123,-500.0,9.998e-05,2]
[348705140,1736733033133,-500.0,9.998e-05,2]
[348705141,1736733033143,-510.92060086,9.998e-05,2]
[348705142,1736733033153,-500.0,9.998e-05,2]
[348705143,1736733033163,-516.04081959,9.998e-05,2]
[348705144,1736733033173,-500.0,9.998e-05,2]
[348705145,1736733033184,-510.46143808,9.998e-05,2]
[348705146,1736733033194,-513.66404241,9.998e-05,2]
[348705147,1736733033204,-500.0,9.998e-05,2]
[348705148,1736733033214,-500.0,9.998e-05,2]
[348705149,1736733033223,-527.95465314,9.998e-05,2]
[348705150,1736733033233,-511.41512562,9.998e-05,2]
[348705151,1736733033243,-640.62682155,9.998e-05,2]
[348705152,1736733033252,-1426.91,9.998e-05,2]
[348705153,1736733033262,-825.26,9.998e-05,2]
[348705154,1736733033271,-1814.71,9.998e-05,2]
[348705155,1736733033280,-2111.09,9.998e-05,2]
[348705156,1736733033290,-500.0,9.998e-05,2]
[348705157,1736733033299,-1752.05,9.999e-05,2]
[348705158,1736733033308,-502.68218918,9.999e-05,2]
[348705159,1736733033318,-179.86917589,9.999e-05,2]
[348705160,1736733033327,-500.0,9.999e-05,2]
[348705161,1736733033337,-500.71229069,9.999e-05,2]
[348705162,1736733033347,-910.08,9.999e-05,2]
[348705163,1736733033359,-541.07,9.999e-05,2]
[348705164,1736733033369,-521.32,9.999e-05,2]
[348705165,1736733033379,-818.23,9.999e-05,2]
[348705166,1736733033388,-818.23,9.999e-05,2]
[348705167,1736733033398,-818.23,9.999e-05,2]
[348705168,1736733033408,-818.23,9.999e-05,2]
[348705169,1736733033417,-818.23,9.999e-05,2]
[348705170,1736733033427,-818.23,9.999e-05,2]
[348705171,1736733033436,-818.23,9.999e-05,2]
[348705172,1736733033446,-818.23,9.999e-05,2]
[348705173,1736733033456,-741.15,9.999e-05,2]
[348705174,1736733033466,-952.53,9.999e-05,2]
[348705175,1736733033477,-500.0,9.999e-05,2]
[348705176,1736733033487,-500.0,9.999e-05,2]
[348705177,1736733033497,-500.0,9.999e-05,2]
[348705178,1736733033507,-500.0,9.999e-05,2]
[348705179,1736733033517,-500.0,9.999e-05,2]
[348705180,1736733033527,-500.0,9.999e-05,2]
[348705181,1736733033537,-500.0,9.999e-05,2]
[348705182,1736733033547,-634.09607863,9.999e-05,2]
[348705183,1736733033557,-500.0,9.999e-05,2]
[348705184,1736733033567,-500.0,9.999e-05,2]
[348705185,1736733033577,-500.0,9.999e-05,2]
[348705186,1736733033587,-500.0,9.999e-05,2]
[348705187,1736733033596,-500.0,9.999e-05,2]
[348705188,1736733033610,-506.28336027,9.999e-05,2]
[348705189,1736733033620,-887.84,9.999e-05,2]
[348705190,1736733033630,-1133.85,9.999e-05,2]
[348705191,1736733033639,-500.0,9.999e-05,2]
[348705192,1736733033649,-500.0,9.999e-05,2]
[348705193,1736733033658,-500.0,9.999e-05,2]
[348705194,1736733033668,-540.75750857,9.999e-05,2]
[348705195,1736733033678,-500.0,9.999e-05,2]
[348705196,1736733033688,-410.266333,9.999e-05,2]
[348705197,1736733033698,-500.0,9.999e-05,2]
[348705198,1736733033709,-500.0,9.999e-05,2]
[348705199,1736733033719,-500.0,9.999e-05,2]
[348705200,1736733033729,-1761.06,9.999e-05,2]
[348705201,1736733033738,-500.0,9.999e-05,2]
[348705202,1736733033747,-500.0,9.999e-05,2]
[348705203,1736733033758,-365.239836,9.999e-05,2]
[348705204,1736733033767,-500.0,9.999e-05,2]
[348705205,1736733033777,-603.28,9.999e-05,2]
[348705206,1736733033786,-500.0,9.999e-05,2]
[348705207,1736733033796,-763.08,9.999e-05,2]
[348705208,1736733033805,-500.0,9.999e-05,2]
[348705209,1736733033816,-500.0,9.999e-05,2]
[348705210,1736733033826,-500.0,9.999e-05,2]
[348705211,1736733033836,-627.63,9.999e-05,2]
[348705212,1736733033847,-500.0,9.999e-05,2]
[348705213,1736733033860,-1189.35,9.999e-05,2]